Workbook

Sheet Дети 3-7 лет
B1: МБДОУ д/с № 362
A2: Прием пищи | B2: Блюдо | C2: Выход | D2: Калорийность | E2: Белки | F2: Жиры | G2: Углеводы
A3: Завтрак | B3: ='[2]Дневной рацион, Дети 3-7 лет, '!D4 -> Омлет паровой натуральный с маслом . | C3: ='[2]Дневной рацион, Дети 3-7 лет, '!E4 -> 128 | D3: ='[2]Дневной рацион, Дети 3-7 лет, '!G4 -> 233.453 | E3: ='[2]Дневной рацион, Дети 3-7 лет, '!H4 -> 12.416 | F3: ='[2]Дневной рацион, Дети 3-7 лет, '!I4 -> 19.033 | G3: ='[2]Дневной рацион, Дети 3-7 лет, '!J4 -> 3.102
B4: ='[2]Дневной рацион, Дети 3-7 лет, '!D5 -> Бутерброды (батон) с маслом . | C4: ='[2]Дневной рацион, Дети 3-7 лет, '!E5 -> 33 | D4: ='[2]Дневной рацион, Дети 3-7 лет, '!G5 -> 137.658 | E4: ='[2]Дневной рацион, Дети 3-7 лет, '!H5 -> 1.509 | F4: ='[2]Дневной рацион, Дети 3-7 лет, '!I5 -> 10.372 | G4: ='[2]Дневной рацион, Дети 3-7 лет, '!J5 -> 9.429
B5: ='[2]Дневной рацион, Дети 3-7 лет, '!D6 -> Какао с молоком . | C5: ='[2]Дневной рацион, Дети 3-7 лет, '!E6 -> 201 | D5: ='[2]Дневной рацион, Дети 3-7 лет, '!G6 -> 107.234 | E5: ='[2]Дневной рацион, Дети 3-7 лет, '!H6 -> 4.623 | F5: ='[2]Дневной рацион, Дети 3-7 лет, '!I6 -> 4.322 | G5: ='[2]Дневной рацион, Дети 3-7 лет, '!J6 -> 12.462
A7: Завтрак №2 | B7: ='[2]Дневной рацион, Дети 3-7 лет, '!D7 -> Банан свежий | C7: ='[2]Дневной рацион, Дети 3-7 лет, '!E7 -> 0 | D7: ='[2]Дневной рацион, Дети 3-7 лет, '!F7 -> 0
A9: Обед | B9: ='[2]Дневной рацион, Дети 3-7 лет, '!D8 -> Огурец свежий в нарезке. | C9: ='[2]Дневной рацион, Дети 3-7 лет, '!E8 -> 0 | D9: ='[2]Дневной рацион, Дети 3-7 лет, '!F8 -> 0
B10: ='[2]Дневной рацион, Дети 3-7 лет, '!D9 -> Щи из свежей капусты с картофелем с мясом и со сметаной. | C10: ='[2]Дневной рацион, Дети 3-7 лет, '!E9 -> 200 | D10: ='[2]Дневной рацион, Дети 3-7 лет, '!G9 -> 73.56 | E10: ='[2]Дневной рацион, Дети 3-7 лет, '!H9 -> 1.66 | F10: ='[2]Дневной рацион, Дети 3-7 лет, '!I9 -> 4.86 | G10: ='[2]Дневной рацион, Дети 3-7 лет, '!J9 -> 5.8
B11: ='[2]Дневной рацион, Дети 3-7 лет, '!D10 -> Печень говяжья по-строгановски. | C11: ='[2]Дневной рацион, Дети 3-7 лет, '!E10 -> 70 | D11: ='[2]Дневной рацион, Дети 3-7 лет, '!G10 -> 198.66 | E11: ='[2]Дневной рацион, Дети 3-7 лет, '!H10 -> 14.14 | F11: ='[2]Дневной рацион, Дети 3-7 лет, '!I10 -> 13.16 | G11: ='[2]Дневной рацион, Дети 3-7 лет, '!J10 -> 5.6
B12: ='[2]Дневной рацион, Дети 3-7 лет, '!D11 -> Макароны отварные с маслом. | C12: ='[2]Дневной рацион, Дети 3-7 лет, '!E11 -> 111 | D12: ='[2]Дневной рацион, Дети 3-7 лет, '!G11 -> 182.04 | E12: ='[2]Дневной рацион, Дети 3-7 лет, '!H11 -> 4.995 | F12: ='[2]Дневной рацион, Дети 3-7 лет, '!I11 -> 4.533 | G12: ='[2]Дневной рацион, Дети 3-7 лет, '!J11 -> 30.341
B13: ='[2]Дневной рацион, Дети 3-7 лет, '!D12 -> Соус сметанный. | C13: ='[2]Дневной рацион, Дети 3-7 лет, '!E12 -> 30 | D13: ='[2]Дневной рацион, Дети 3-7 лет, '!G12 -> 5.712 | E13: ='[2]Дневной рацион, Дети 3-7 лет, '!H12 -> 0.09 | F13: ='[2]Дневной рацион, Дети 3-7 лет, '!I12 -> 0.507 | G13: ='[2]Дневной рацион, Дети 3-7 лет, '!J12 -> 0.201
B14: ='[2]Дневной рацион, Дети 3-7 лет, '!D13 -> Компот из вишни. | C14: ='[2]Дневной рацион, Дети 3-7 лет, '!E13 -> 198 | D14: ='[2]Дневной рацион, Дети 3-7 лет, '!G13 -> 6.356 | E14: ='[2]Дневной рацион, Дети 3-7 лет, '!H13 -> 0.04 | F14: ='[2]Дневной рацион, Дети 3-7 лет, '!I13 -> 0.02 | G14: ='[2]Дневной рацион, Дети 3-7 лет, '!J13 -> 1.525
B15: ='[2]Дневной рацион, Дети 3-7 лет, '!D14 -> Хлеб пшеничный | C15: ='[2]Дневной рацион, Дети 3-7 лет, '!E14 -> 40 | D15: ='[2]Дневной рацион, Дети 3-7 лет, '!G14 -> 0 | E15: ='[2]Дневной рацион, Дети 3-7 лет, '!H14 -> 0 | F15: ='[2]Дневной рацион, Дети 3-7 лет, '!I14 -> 0 | G15: ='[2]Дневной рацион, Дети 3-7 лет, '!J14 -> 0
B16: ='[2]Дневной рацион, Дети 3-7 лет, '!D15 -> Хлеб ржаной | C16: ='[2]Дневной рацион, Дети 3-7 лет, '!E15 -> 36 | D16: ='[2]Дневной рацион, Дети 3-7 лет, '!F15 -> 0 | E16: ='[1]Дневной рацион, Дети 3-7 лет, '!G13 -> 0 | F16: ='[1]Дневной рацион, Дети 3-7 лет, '!H13 -> 0 | G16: ='[1]Дневной рацион, Дети 3-7 лет, '!I13 -> 0
A18: Полдник | B18: ='[2]Дневной рацион, Дети 3-7 лет, '!D16 -> Пряники | C18: ='[2]Дневной рацион, Дети 3-7 лет, '!E16 -> 70 | D18: ='[2]Дневной рацион, Дети 3-7 лет, '!G16 -> 256.2 | E18: ='[2]Дневной рацион, Дети 3-7 лет, '!H16 -> 4.13 | F18: ='[2]Дневной рацион, Дети 3-7 лет, '!I16 -> 0 | G18: ='[2]Дневной рацион, Дети 3-7 лет, '!J16 -> 52.5
B19: ='[2]Дневной рацион, Дети 3-7 лет, '!D17 -> Молоко кипяченое | C19: ='[2]Дневной рацион, Дети 3-7 лет, '!E17 -> 180 | D19: ='[2]Дневной рацион, Дети 3-7 лет, '!G17 -> 95.4 | E19: ='[2]Дневной рацион, Дети 3-7 лет, '!H17 -> 5.22 | F19: ='[2]Дневной рацион, Дети 3-7 лет, '!I17 -> 4.5 | G19: ='[2]Дневной рацион, Дети 3-7 лет, '!J17 -> 8.64
A21: Ужин | B21: ='[2]Дневной рацион, Дети 3-7 лет, '!D18 -> Напиток витаминный Витошка . | C21: ='[2]Дневной рацион, Дети 3-7 лет, '!E18 -> 186 | D21: ='[2]Дневной рацион, Дети 3-7 лет, '!G18 -> 306.9 | E21: ='[2]Дневной рацион, Дети 3-7 лет, '!H18 -> 0 | F21: ='[2]Дневной рацион, Дети 3-7 лет, '!I18 -> 0 | G21: ='[2]Дневной рацион, Дети 3-7 лет, '!J18 -> 17.67
B22: ='[2]Дневной рацион, Дети 3-7 лет, '!D19 -> Хлеб пшеничный | C22: ='[2]Дневной рацион, Дети 3-7 лет, '!E19 -> 20 | D22: ='[2]Дневной рацион, Дети 3-7 лет, '!G19 -> 0 | E22: ='[2]Дневной рацион, Дети 3-7 лет, '!H19 -> 0 | F22: ='[2]Дневной рацион, Дети 3-7 лет, '!I19 -> 0 | G22: ='[2]Дневной рацион, Дети 3-7 лет, '!J19 -> 0
B23: ='[2]Дневной рацион, Дети 3-7 лет, '!D20 -> Каша жидкая молочная гречневая | C23: ='[2]Дневной рацион, Дети 3-7 лет, '!E20 -> 201 | D23: ='[2]Дневной рацион, Дети 3-7 лет, '!G20 -> 198.186 | E23: ='[2]Дневной рацион, Дети 3-7 лет, '!H20 -> 7.136 | F23: ='[2]Дневной рацион, Дети 3-7 лет, '!I20 -> 6.533 | G23: ='[2]Дневной рацион, Дети 3-7 лет, '!J20 -> 27.839

Sheet Дети до 3-лет
A3: Прием пищи | B3: Блюдо | C3: Выход | D3: Калорийность | E3: Белки | F3: Жиры | G3: Углеводы
A4: Завтрак | B4: ='[3]Дневной рацион, Дети до 3х лет'!D4 -> Омлет паровой натуральный с маслом . | C4: ='[3]Дневной рацион, Дети до 3х лет'!E4 -> 101 | D4: ='[3]Дневной рацион, Дети до 3х лет'!G4 -> 184.209 | E4: ='[3]Дневной рацион, Дети до 3х лет'!H4 -> 9.797 | F4: ='[3]Дневной рацион, Дети до 3х лет'!I4 -> 15.019 | G4: ='[3]Дневной рацион, Дети до 3х лет'!J4 -> 2.449
B5: ='[3]Дневной рацион, Дети до 3х лет'!D5 -> Бутерброды (батон) с маслом . | C5: ='[3]Дневной рацион, Дети до 3х лет'!E5 -> 33 | D5: ='[3]Дневной рацион, Дети до 3х лет'!G5 -> 137.658 | E5: ='[3]Дневной рацион, Дети до 3х лет'!H5 -> 1.509 | F5: ='[3]Дневной рацион, Дети до 3х лет'!I5 -> 10.372 | G5: ='[3]Дневной рацион, Дети до 3х лет'!J5 -> 9.429
B6: ='[3]Дневной рацион, Дети до 3х лет'!D6 -> Какао с молоком . | C6: ='[3]Дневной рацион, Дети до 3х лет'!E6 -> 171 | D6: ='[3]Дневной рацион, Дети до 3х лет'!G6 -> 91.229 | E6: ='[3]Дневной рацион, Дети до 3х лет'!H6 -> 3.933 | F6: ='[3]Дневной рацион, Дети до 3х лет'!I6 -> 3.677 | G6: ='[3]Дневной рацион, Дети до 3х лет'!J6 -> 10.602
B8: ='[3]Дневной рацион, Дети до 3х лет'!D7 -> Банан свежий | C8: ='[3]Дневной рацион, Дети до 3х лет'!E7 -> 0 | D8: ='[3]Дневной рацион, Дети до 3х лет'!G7 -> 0 | E8: ='[3]Дневной рацион, Дети до 3х лет'!H7 -> 0 | F8: ='[3]Дневной рацион, Дети до 3х лет'!I7 -> 0 | G8: ='[3]Дневной рацион, Дети до 3х лет'!J7 -> 0
A9: Завтрак №2 | B9: ='[3]Дневной рацион, Дети до 3х лет'!D8 -> Огурец свежий в нарезке. | C9: ='[3]Дневной рацион, Дети до 3х лет'!E8 -> 0 | D9: ='[3]Дневной рацион, Дети до 3х лет'!G8 -> 0 | E9: ='[3]Дневной рацион, Дети до 3х лет'!H8 -> 0 | F9: ='[3]Дневной рацион, Дети до 3х лет'!I8 -> 0 | G9: ='[3]Дневной рацион, Дети до 3х лет'!J8 -> 0
B11: ='[3]Дневной рацион, Дети до 3х лет'!D9 -> Щи из свежей капусты с картофелем с мясом и со сметаной. | C11: ='[3]Дневной рацион, Дети до 3х лет'!E9 -> 180 | D11: ='[3]Дневной рацион, Дети до 3х лет'!G9 -> 66.204 | E11: ='[3]Дневной рацион, Дети до 3х лет'!H9 -> 1.494 | F11: ='[3]Дневной рацион, Дети до 3х лет'!I9 -> 4.374 | G11: ='[3]Дневной рацион, Дети до 3х лет'!J9 -> 5.22
B12: ='[3]Дневной рацион, Дети до 3х лет'!D10 -> Печень говяжья по-строгановски. | C12: ='[3]Дневной рацион, Дети до 3х лет'!E10 -> 50 | D12: ='[3]Дневной рацион, Дети до 3х лет'!G10 -> 141.9 | E12: ='[3]Дневной рацион, Дети до 3х лет'!H10 -> 10.1 | F12: ='[3]Дневной рацион, Дети до 3х лет'!I10 -> 9.4 | G12: ='[3]Дневной рацион, Дети до 3х лет'!J10 -> 4
B13: ='[3]Дневной рацион, Дети до 3х лет'!D11 -> Макароны отварные до 3-х лет | C13: ='[3]Дневной рацион, Дети до 3х лет'!E11 -> 90 | D13: ='[3]Дневной рацион, Дети до 3х лет'!G11 -> 141.66 | E13: ='[3]Дневной рацион, Дети до 3х лет'!H11 -> 3.87 | F13: ='[3]Дневной рацион, Дети до 3х лет'!I11 -> 3.51 | G13: ='[3]Дневной рацион, Дети до 3х лет'!J11 -> 23.58
A14: Обед | B14: ='[3]Дневной рацион, Дети до 3х лет'!D12 -> Соус сметанный. | C14: ='[3]Дневной рацион, Дети до 3х лет'!E12 -> 20 | D14: ='[3]Дневной рацион, Дети до 3х лет'!G12 -> 3.808 | E14: ='[3]Дневной рацион, Дети до 3х лет'!H12 -> 0.06 | F14: ='[3]Дневной рацион, Дети до 3х лет'!I12 -> 0.338 | G14: ='[3]Дневной рацион, Дети до 3х лет'!J12 -> 0.134
B15: ='[3]Дневной рацион, Дети до 3х лет'!D13 -> Компот из вишни. | C15: ='[3]Дневной рацион, Дети до 3х лет'!E13 -> 178 | D15: ='[3]Дневной рацион, Дети до 3х лет'!G13 -> 5.714 | E15: ='[3]Дневной рацион, Дети до 3х лет'!H13 -> 0.036 | F15: ='[3]Дневной рацион, Дети до 3х лет'!I13 -> 0.018 | G15: ='[3]Дневной рацион, Дети до 3х лет'!J13 -> 1.371
B16: ='[3]Дневной рацион, Дети до 3х лет'!D14 -> Хлеб пшеничный | C16: ='[3]Дневной рацион, Дети до 3х лет'!E14 -> 20 | D16: ='[3]Дневной рацион, Дети до 3х лет'!G14 -> 0 | E16: ='[3]Дневной рацион, Дети до 3х лет'!H14 -> 0 | F16: ='[3]Дневной рацион, Дети до 3х лет'!I14 -> 0 | G16: ='[3]Дневной рацион, Дети до 3х лет'!J14 -> 0
B17: ='[3]Дневной рацион, Дети до 3х лет'!D15 -> Хлеб ржаной | C17: ='[3]Дневной рацион, Дети до 3х лет'!E15 -> 21 | D17: ='[3]Дневной рацион, Дети до 3х лет'!G15 -> 0 | E17: ='[3]Дневной рацион, Дети до 3х лет'!H15 -> 0 | F17: ='[3]Дневной рацион, Дети до 3х лет'!I15 -> 0 | G17: ='[3]Дневной рацион, Дети до 3х лет'!J15 -> 0
A19: Полдник | B19: ='[3]Дневной рацион, Дети до 3х лет'!D16 -> Пряники | C19: ='[3]Дневной рацион, Дети до 3х лет'!E16 -> 47 | D19: ='[3]Дневной рацион, Дети до 3х лет'!G16 -> 172.02 | E19: ='[3]Дневной рацион, Дети до 3х лет'!H16 -> 2.773 | F19: ='[3]Дневной рацион, Дети до 3х лет'!I16 -> 0 | G19: ='[3]Дневной рацион, Дети до 3х лет'!J16 -> 35.25
B20: ='[3]Дневной рацион, Дети до 3х лет'!D17 -> Молоко кипяченое | C20: ='[3]Дневной рацион, Дети до 3х лет'!E17 -> 170 | D20: ='[3]Дневной рацион, Дети до 3х лет'!G17 -> 90.1 | E20: ='[3]Дневной рацион, Дети до 3х лет'!H17 -> 4.93 | F20: ='[3]Дневной рацион, Дети до 3х лет'!I17 -> 4.25 | G20: ='[3]Дневной рацион, Дети до 3х лет'!J17 -> 8.16
A22: Ужин | B22: ='[3]Дневной рацион, Дети до 3х лет'!D18 -> Напиток витаминный Витошка . | C22: ='[3]Дневной рацион, Дети до 3х лет'!E18 -> 175 | D22: ='[3]Дневной рацион, Дети до 3х лет'!G18 -> 288.75 | E22: ='[3]Дневной рацион, Дети до 3х лет'!H18 -> 0 | F22: ='[3]Дневной рацион, Дети до 3х лет'!I18 -> 0 | G22: ='[3]Дневной рацион, Дети до 3х лет'!J18 -> 16.625
B23: ='[3]Дневной рацион, Дети до 3х лет'!D19 -> Хлеб пшеничный | C23: ='[3]Дневной рацион, Дети до 3х лет'!E19 -> 20 | D23: ='[3]Дневной рацион, Дети до 3х лет'!G19 -> 0 | E23: ='[3]Дневной рацион, Дети до 3х лет'!H19 -> 0 | F23: ='[3]Дневной рацион, Дети до 3х лет'!I19 -> 0 | G23: ='[3]Дневной рацион, Дети до 3х лет'!J19 -> 0
B24: ='[3]Дневной рацион, Дети до 3х лет'!D20 -> Каша жидкая молочная гречневая | C24: ='[3]Дневной рацион, Дети до 3х лет'!E20 -> 170 | D24: ='[3]Дневной рацион, Дети до 3х лет'!G20 -> 167.62 | E24: ='[3]Дневной рацион, Дети до 3х лет'!H20 -> 6.035 | F24: ='[3]Дневной рацион, Дети до 3х лет'!I20 -> 5.525 | G24: ='[3]Дневной рацион, Дети до 3х лет'!J20 -> 23.545
B25: ='[3]Дневной рацион, Дети до 3х лет'!D21 -> 0 | C25: ='[3]Дневной рацион, Дети до 3х лет'!E21 -> 0 | D25: ='[3]Дневной рацион, Дети до 3х лет'!G21 -> 0 | E25: ='[3]Дневной рацион, Дети до 3х лет'!H21 -> 0 | F25: ='[3]Дневной рацион, Дети до 3х лет'!I21 -> 0 | G25: ='[3]Дневной рацион, Дети до 3х лет'!J21 -> 0
